lending/lending_fUSD_20251111
["ID","MTS","AMOUNT","RATE_DAILY","PERIOD"]
[393608863,1762851044384,-900.0,0.00035554,30]
[393608864,1762851044394,-500.0,0.00035555,30]
[393608865,1762851044404,-663.93287602,0.00035562,2]
[393608866,1762851044413,-500.0,0.00035574,30]
[393608867,1762851044423,-500.0,0.00035574,30]
[393608868,1762851044432,-500.0,0.00035604,30]
[393608869,1762851044442,-500.95275004,0.00035616,30]
[393608870,1762851044452,-195.50802629,0.00035616,120]
[393608871,1762851044464,-1000.0,0.00035616,5]
[393608872,1762851044473,-500.0,0.00035625,30]
[393608873,1762851044483,-500.0,0.00035644,30]
[393608874,1762851044493,-900.0,0.00035661,30]
[393608875,1762851044503,-900.0,0.0003568,30]
[393608876,1762851044513,-500.0,0.00035701,30]
[393608877,1762851044523,-1000.0,0.00035717,7]
[393608878,1762851044532,-500.0,0.00035719,30]
[393608879,1762851044542,-900.0,0.00035721,30]
[393608880,1762851044552,-500.0,0.00035724,30]
[393608881,1762851044561,-500.0,0.00035754,30]
[393608882,1762851044571,-610.14834902,0.00035758,30]
[393608883,1762851044581,-900.0,0.00035758,30]
[393608884,1762851044591,-500.0,0.00035759,30]
[393608885,1762851044600,-500.0,0.00035779,30]
[393608886,1762851044610,-900.0,0.00035779,30]
[393608887,1762851044619,-500.0,0.00035787,30]
[393608888,1762851044629,-500.0,0.00035833,30]
[393608889,1762851044639,-500.0,0.00035836,30]
[393608890,1762851044649,-500.0,0.00035841,30]
[393608891,1762851044659,-900.0,0.00035841,30]
[393608892,1762851044668,-500.0,0.00035856,30]
[393608893,1762851044678,-925.81693807,0.00035858,30]
[393608894,1762851044688,-500.0,0.00035881,30]
[393608895,1762851044698,-900.0,0.00035894,30]
[393608896,1762851044707,-782.82126604,0.00035894,30]
[393608897,1762851044716,-500.0,0.00035898,30]
[393608898,1762851044726,-900.0,0.00035912,30]
[393608899,1762851044735,-1632.0,0.00035916,2]
[393608900,1762851044744,-900.0,0.0003593,30]
[393608901,1762851044754,-410.34373971,0.00035939,30]
[393608902,1762851044763,-919.51105167,0.00035964,30]
[393608903,1762851044773,-900.0,0.00035979,30]
[393608904,1762851044782,-165.09,0.00036,45]
[393608905,1762851044791,-500.0,0.00036015,30]
[393608906,1762851044801,-515.69447082,0.00036018,30]
[393608907,1762851044810,-503.80125504,0.00036043,30]
[393608908,1762851044819,-934.96407744,0.00036052,30]
[393608909,1762851044828,-2571.57890654,0.00036057,2]
[393608910,1762851044838,-751.50131424,0.00036063,30]
[393608911,1762851044847,-1792.0,0.00036076,2]
[393608912,1762851044856,-151.0,0.00036108,2]
[393608913,1762851044865,-346.92554585,0.00036108,2]
[393608914,1762851044875,-688.49839244,0.0003611,2]
[393608915,1762851044884,-437.5815132,0.00036132,2]
[393608916,1762851044893,-655.85,0.00036277,2]
[393608917,1762851044903,-450.0,0.00036306,7]
[393608918,1762851044912,-300.0,0.00036306,7]
[393608919,1762851044922,-2441.82,0.000364,2]
[393608920,1762851044932,-9119.95,0.000364,14]
[393608921,1762851044942,-8412.8199332,0.00036416,2]
[393608922,1762851044951,-5154.89989462,0.00036438,2]
[393608923,1762851044960,-1539.0,0.00036458,2]
[393608924,1762851044971,-619.59008654,0.00036538,2]
[393608925,1762851044981,-254.22527131,0.00036538,2]
[393608926,1762851044990,-191.57459816,0.00036542,2]
[393608927,1762851045000,-191.40075849,0.00036626,2]
[393608928,1762851045011,-17751.91,0.00036633,2]
[393608929,1762851045020,-574.0,0.00036642,2]
[393608930,1762851045029,-1317.0,0.00036642,2]
[393608931,1762851045039,-820.0,0.00036642,2]
[393608932,1762851045048,-1518.418,0.00036642,2]
[393608933,1762851045057,-1273.0,0.00036642,2]
[393608934,1762851045067,-6661.0,0.00036642,2]
[393608935,1762851045076,-561.935,0.00036642,2]
[393608936,1762851045087,-2143.0,0.00036642,2]
[393608937,1762851045096,-294.499,0.00036642,2]
[393608938,1762851045106,-713.97283296,0.00036658,2]
[393608939,1762851045118,-2500.0,0.0003666,2]
[393608940,1762851045128,-239.17,0.000367,14]
[393608941,1762851045139,-52037.35930119,0.00036736,2]
[393608942,1762851045150,-34600.54959559,0.00036738,2]
[393608943,1762851045159,-1539.0,0.00036772,2]
[393608944,1762851045168,-927.51,0.000368,30]
[393608945,1762851045178,-2500.0,0.00036816,2]
[393608946,1762851045188,-5000.0,0.00036896,2]
[393608947,1762851045197,-5000.0,0.00036896,2]
[393608948,1762851045207,-5000.0,0.00036896,2]
[393608949,1762851045216,-5000.0,0.00036896,2]
[393608950,1762851045225,-793.46197455,0.00036912,15]
[393608951,1762851045234,-167.63805877,0.00037021,60]
[393608952,1762851045243,-1742.47277302,0.00037037,2]
[393608953,1762851045252,-15812.09319399,0.00037088,5]
[393608954,1762851045263,-1632.0,0.0003715,2]
[393608955,1762851045273,-740.38982778,0.00037206,2]
[393608956,1762851045283,-1000.0,0.00037214,7]
[393608957,1762851045291,-156.164658,0.00037254,3]
[393608958,1762851045302,-161.833417,0.00037254,3]
[393608959,1762851045311,-2571.57890654,0.00037258,2]
[393608960,1762851045321,-500.0,0.00037392,2]
[393608961,1762851045330,-1539.0,0.00037394,7]
[393608962,1762851045341,-1539.0,0.00037412,2]
[393608963,1762851045351,-500.0,0.00037473,5]
[393608964,1762851045360,-500.0,0.00037473,5]
[393608965,1762851045370,-151.0,0.00037477,2]
[393608966,1762851045381,-359.76179104,0.00037477,2]
[393608967,1762851045390,-1000.0,0.00037488,7]
[393608968,1762851045399,-1669.52,0.00037488,2]
[393608969,1762851045408,-500.0,0.00037489,41]
[393608970,1762851045418,-150.0,0.00037489,2]
[393608971,1762851045428,-150.0,0.00037489,41]
[393608972,1762851045438,-500.0,0.00037489,41]
[393608973,1762851045447,-150.0,0.00037489,2]
[393608974,1762851045457,-150.0,0.00037489,41]
[393608975,1762851045466,-150.0,0.00037489,2]
[393608976,1762851045476,-500.0,0.00037489,41]
[393608977,1762851045485,-500.0,0.00037489,41]
[393608978,1762851045496,-150.0,0.00037489,41]
[393608979,1762851045506,-150.0,0.00037489,41]
[393608980,1762851045516,-150.0,0.00037489,41]
[393608981,1762851045526,-500.0,0.00037489,41]
[393608982,1762851045535,-150.8076834,0.00037489,41]
[393608983,1762851045544,-500.0,0.00037489,41]
[393608984,1762851045554,-500.0,0.00037489,41]
[393608985,1762851045563,-150.0,0.00037489,41]
[393608986,1762851045572,-500.0,0.00037489,2]
[393608987,1762851045581,-500.0,0.00037489,41]
[393608988,1762851045591,-500.0,0.00037489,41]
[393608989,1762851045600,-500.0,0.00037489,41]
[393608990,1762851045610,-150.0,0.00037489,41]
[393608991,1762851045619,-500.0,0.00037489,41]
[393608992,1762851045629,-150.0,0.00037489,41]
[393608993,1762851045639,-152.81423976,0.00037489,41]
[393608994,1762851045649,-500.0,0.00037489,41]
[393608995,1762851045658,-150.0,0.00037489,41]
[393608996,1762851045667,-500.0,0.00037489,2]
[393608997,1762851045676,-154.7243316,0.00037489,41]
[393608998,1762851045685,-500.0,0.00037489,41]
[393608999,1762851045694,-500.0,0.00037489,41]
[393609000,1762851045704,-500.0,0.00037489,23]
[393609001,1762851045713,-233.17505471,0.00037489,41]
[393609002,1762851045722,-152.82438448,0.00037489,41]
[393609003,1762851045731,-154.09491717,0.00037489,41]
[393609004,1762851045740,-150.0,0.00037489,41]
[393609005,1762851045749,-152.54607506,0.00037489,41]
[393609006,1762851045757,-153.6035301,0.00037489,41]
[393609007,1762851045767,-151.18385876,0.00037489,41]
[393609008,1762851045776,-212.23433046,0.00037489,41]
[393609010,1762851045785,-150.0,0.00037489,41]
[393609012,1762851045794,-150.0,0.00037489,41]
[393609013,1762851045805,-150.0,0.00037489,41]
[393609014,1762851045814,-150.0,0.00037489,41]
[393609015,1762851045823,-150.0,0.00037489,2]
[393609016,1762851045832,-171.62032392,0.00037526,10]
[393609017,1762851045841,-211.15,0.00037544,60]
[393609018,1762851045850,-1539.0,0.00037562,120]
[393609019,1762851045859,-163.0,0.000376,60]
[393609020,1762851045868,-150.0,0.00037626,41]
[393609021,1762851045877,-500.0,0.00037626,41]
[393609022,1762851045886,-150.0,0.00037626,41]
[393609023,1762851045895,-500.0,0.00037626,41]
[393609024,1762851045904,-500.0,0.00037626,41]
[393609025,1762851045920,-150.0,0.00037626,41]
[393609026,1762851045937,-150.0,0.00037626,41]
[393609027,1762851045947,-150.0,0.00037626,41]
[393609028,1762851045956,-500.0,0.00037626,41]
[393609029,1762851045966,-602.0179959,0.00037626,41]
[393609030,1762851045975,-500.0,0.00037626,41]
[393609031,1762851045985,-150.0,0.00037626,41]
[393609032,1762851045994,-500.0,0.00037626,2]
[393609033,1762851046003,-500.0,0.00037626,41]
[393609034,1762851046012,-500.0,0.00037626,41]
[393609035,1762851046021,-500.0,0.00037626,41]
[393609036,1762851046030,-150.0,0.00037626,41]
[393609037,1762851046039,-500.0,0.00037626,41]
[393609038,1762851046048,-207.33817714,0.00037626,41]
[393609039,1762851046058,-500.0,0.00037626,41]
[393609040,1762851046067,-150.0,0.00037626,41]
[393609041,1762851046076,-505.24816507,0.00037626,2]
[393609042,1762851046085,-500.0,0.00037626,41]
[393609043,1762851046094,-500.0,0.00037626,41]
[393609044,1762851046104,-500.0,0.00037626,23]
[393609045,1762851046113,-150.0,0.00037626,41]
[393609046,1762851046123,-150.61094306,0.00037626,41]
[393609047,1762851046134,-152.74124237,0.00037626,41]
[393609048,1762851046143,-150.0,0.00037626,41]
[393609049,1762851046153,-150.0,0.00037626,41]
[393609050,1762851046162,-1539.0,0.00037709,2]
[393609051,1762851046171,-767.7842514,0.00037754,2]
[393609052,1762851046181,-1000.0,0.00037762,7]
[393609053,1762851046190,-157.55671658,0.00037763,41]
[393609054,1762851046198,-250.0,0.00037763,41]
[393609055,1762851046210,-211.71538546,0.00037763,41]
[393609056,1762851046219,-500.0,0.00037763,41]
[393609057,1762851046228,-500.0,0.00037763,41]
[393609058,1762851046237,-201.42723711,0.00037763,41]
[393609059,1762851046247,-152.22350438,0.00037763,41]
[393609060,1762851046256,-150.0,0.00037763,41]
[393609061,1762851046270,-400.13693149,0.00037763,41]
[393609062,1762851046279,-157.91528284,0.00037763,41]
[393609063,1762851046288,-163.86032762,0.00037763,41]
[393609064,1762851046299,-500.0,0.00037763,2]
[393609065,1762851046308,-500.0,0.00037763,41]
[393609066,1762851046317,-500.0,0.00037763,41]
[393609067,1762851046326,-152.65981266,0.00037763,41]
[393609068,1762851046336,-153.70882138,0.00037763,41]
[393609069,1762851046348,-500.0,0.00037763,41]
[393609070,1762851046358,-500.0,0.00037763,41]
[393609071,1762851046367,-150.0,0.00037763,41]
[393609072,1762851046378,-500.0,0.00037763,41]
[393609073,1762851046386,-456.52540464,0.00037763,41]
[393609074,1762851046395,-351.94759367,0.00037763,23]
[393609075,1762851046405,-150.0,0.00037763,41]
[393609076,1762851046414,-1632.0,0.0003784,2]
[393609077,1762851046424,-500.0,0.000379,41]
[393609078,1762851046434,-500.0,0.000379,41]
[393609079,1762851046443,-150.0,0.000379,41]
[393609080,1762851046452,-500.0,0.000379,2]
[393609081,1762851046461,-500.0,0.000379,41]
[393609082,1762851046471,-562.88369193,0.000379,41]
[393609083,1762851046480,-500.0,0.000379,41]
[393609084,1762851046490,-150.0,0.000379,41]
[393609085,1762851046499,-150.0,0.000379,41]
[393609086,1762851046508,-500.0,0.000379,41]
[393609087,1762851046517,-150.0,0.000379,41]
[393609088,1762851046527,-9119.95,0.000379,14]
[393609089,1762851046536,-239.17,0.000379,14]
[393609091,1762851046545,-243.43683937,0.00038,120]
[393609092,1762851046554,-2000.0,0.00038,2]
[393609093,1762851046563,-2000.0,0.00038,2]
[393609094,1762851046573,-2000.0,0.00038,2]
[393609095,1762851046581,-2000.0,0.00038,2]
[393609096,1762851046591,-2000.0,0.00038,2]
[393609097,1762851046601,-2000.0,0.00038,2]
[393609098,1762851046610,-2000.0,0.00038,2]
[393609099,1762851046619,-927.51,0.00038,30]
[393609100,1762851046631,-468.68526989,0.00038021,5]
[393609101,1762851046640,-500.0,0.00038021,5]
[393609102,1762851046650,-1000.0,0.00038036,7]
[393609103,1762851046659,-500.0,0.00038037,41]
[393609104,1762851046668,-450.0,0.00038037,41]
[393609105,1762851046678,-154.35833183,0.00038037,41]
[393609106,1762851046834,-500.0,0.00038037,2]
[393609107,1762851046844,-500.0,0.00038037,41]
[393609108,1762851046854,-500.0,0.00038037,41]
[393609109,1762851046863,-154.99215178,0.00038037,41]
[393609110,1762851046872,-500.0,0.00038037,41]
[393609111,1762851046883,-200.0,0.00038037,41]
[393609112,1762851046892,-5154.89989462,0.00038052,2]
[393609113,1762851046902,-1250.53,0.00038053,2]
[393609114,1762851046911,-500.0,0.00038054,7]
[393609115,1762851046920,-500.0,0.00038054,7]
[393609116,1762851046930,-500.0,0.00038054,7]
[393609117,1762851046939,-619.59008654,0.00038102,2]
[393609118,1762851046949,-254.22527129,0.00038102,2]
[393609119,1762851046958,-191.57459815,0.00038104,2]
[393609120,1762851046967,-500.0,0.00038174,41]
[393609121,1762851046975,-500.0,0.00038174,2]
[393609122,1762851046985,-500.0,0.00038174,41]
[393609123,1762851046994,-504.5436472,0.00038174,41]
[393609124,1762851047003,-500.0,0.00038174,41]
[393609125,1762851047012,-1792.0,0.00038207,120]
[393609126,1762851047022,-217.96580628,0.000383,2]
[393609127,1762851047033,-796.19226871,0.00038302,2]
[393609128,1762851047042,-1000.0,0.0003831,7]
[393609129,1762851047051,-500.0,0.00038311,41]
[393609130,1762851047060,-362.27802841,0.00038311,2]
[393609131,1762851047070,-500.0,0.00038311,41]
[393609132,1762851047079,-500.0,0.00038311,41]
[393609133,1762851047088,-151.06,0.00038342,2]
[393609134,1762851047097,-151.0,0.00038353,14]
[393609135,1762851047106,-35.89049367,0.00038356,2]
[393609136,1762851047115,-500.0,0.00038356,2]
[393609137,1762851047125,-500.0,0.00038356,2]
[393609138,1762851047135,-500.0,0.00038356,2]
[393609139,1762851047145,-500.0,0.00038356,2]
[393609140,1762851047154,-500.0,0.00038356,2]
[393609141,1762851047163,-500.0,0.00038356,2]
[393609142,1762851047172,-500.0,0.00038356,2]
[393609143,1762851047181,-500.0,0.00038356,2]
[393609144,1762851047190,-500.0,0.00038356,2]
[393609145,1762851047199,-500.0,0.00038356,2]
[393609146,1762851047209,-500.0,0.00038356,2]
[393609147,1762851047218,-502.24622335,0.00038356,2]
[393609148,1762851047227,-500.0,0.00038356,120]
[393609149,1762851047236,-2000.0,0.00038356,2]
[393609150,1762851047246,-200.0,0.00038356,2]
[393609151,1762851047255,-500.0,0.00038356,2]
[393609152,1762851047268,-505.15485625,0.00038356,120]
[393609153,1762851047277,-1178.71,0.00038356,2]
[393609154,1762851047286,-1178.71,0.00038356,2]
[393609155,1762851047295,-1178.71,0.00038356,2]
[393609156,1762851047306,-1178.71,0.00038356,2]
[393609157,1762851047315,-1178.71,0.00038356,2]
[393609158,1762851047325,-1178.71,0.00038356,2]
[393609159,1762851047335,-1178.71,0.00038356,2]
[393609160,1762851047344,-1178.71,0.00038356,2]
[393609161,1762851047354,-1178.71,0.00038356,2]
[393609162,1762851047363,-1178.71,0.00038356,2]
[393609163,1762851047373,-1178.71,0.00038356,2]
[393609164,1762851047383,-1178.71,0.00038356,2]
[393609165,1762851047392,-1178.71,0.00038356,2]
[393609166,1762851047402,-1178.71,0.00038356,2]
[393609167,1762851047412,-1178.71,0.00038356,2]
[393609168,1762851047421,-1178.71,0.00038356,2]
[393609169,1762851047430,-1178.71,0.00038356,2]
[393609170,1762851047439,-1178.71,0.00038356,2]
[393609171,1762851047448,-1178.71,0.00038356,2]
[393609172,1762851047458,-1178.71,0.00038356,2]
[393609173,1762851047469,-1178.71,0.00038356,2]
[393609174,1762851047479,-1178.71,0.00038356,2]
[393609175,1762851047488,-1178.71,0.00038356,2]
[393609176,1762851047497,-1178.81643746,0.00038356,2]
[393609177,1762851047507,-300.0,0.00038356,2]
[393609178,1762851047516,-300.0,0.00038356,2]
[393609179,1762851047525,-300.0,0.00038356,2]
[393609180,1762851047535,-300.0,0.00038356,2]
[393609181,1762851047544,-300.0,0.00038356,2]
[393609182,1762851047553,-300.0,0.00038356,2]
[393609183,1762851047562,-300.0,0.00038356,2]
[393609184,1762851047571,-300.0,0.00038356,2]
[393609185,1762851047581,-300.0,0.00038356,2]
[393609186,1762851047590,-300.0,0.00038356,2]
[393609187,1762851047600,-300.0,0.00038356,2]
[393609188,1762851047609,-300.0,0.00038356,2]
[393609189,1762851047618,-300.0,0.00038356,2]
[393609190,1762851047628,-333.74453563,0.00038356,2]
[393609191,1762851047638,-1000.0,0.00038356,2]
[393609192,1762851047648,-1000.0,0.00038356,2]
[393609193,1762851047658,-1000.0,0.00038356,2]
[393609194,1762851047667,-1000.0,0.00038356,2]
[393609195,1762851047676,-1000.0,0.00038356,2]
[393609196,1762851047685,-1000.0,0.00038356,2]
[393609197,1762851047695,-1000.0,0.00038356,2]
[393609198,1762851047704,-1000.0,0.00038356,2]
[393609199,1762851047713,-1000.0,0.00038356,2]
[393609200,1762851047723,-1000.0,0.00038356,2]
[393609201,1762851047732,-1000.0,0.00038356,2]
[393609202,1762851047742,-1000.0,0.00038356,2]
[393609203,1762851047751,-1084.87375295,0.00038356,2]
[393609204,1762851047761,-500.0,0.00038356,2]
[393609205,1762851047770,-500.0,0.00038356,2]
[393609206,1762851047779,-500.0,0.00038356,2]
[393609207,1762851047788,-500.0,0.00038356,2]
[393609208,1762851047798,-500.0,0.00038356,2]
[393609209,1762851047808,-500.0,0.00038356,2]
[393609210,1762851047817,-500.0,0.00038356,2]
[393609211,1762851047826,-500.0,0.00038356,2]
[393609212,1762851047836,-150.0,0.00038356,5]
[393609213,1762851047845,-1442.82979256,0.00038401,2]
[393609214,1762851047854,-500.0,0.00038448,41]
[393609215,1762851047864,-500.0,0.00038448,41]
[393609216,1762851047873,-500.0,0.00038448,41]
[393609217,1762851047883,-1632.0,0.00038448,120]
[393609218,1762851047893,-500.0,0.00038458,2]
[393609219,1762851047903,-2571.57890654,0.00038459,2]
[393609220,1762851047912,-447.0,0.000385,2]
[393609221,1762851047921,-300.0,0.00038511,2]
[393609222,1762851047931,-300.0,0.00038577,2]
[393609223,1762851047940,-1000.0,0.00038584,120]
[393609224,1762851047949,-250.0,0.00038585,41]
[393609225,1762851047959,-500.0,0.00038585,41]
[393609226,1762851047968,-500.0,0.00038585,41]
[393609227,1762851047977,-300.0,0.00038587,2]
[393609228,1762851047986,-171.62032392,0.00038593,12]
[393609229,1762851047995,-156.164658,0.00038612,3]
[393609230,1762851048004,-155.113024,0.00038612,3]
[393609231,1762851048014,-161.833417,0.00038612,3]
[393609232,1762851048023,-217.96580628,0.00038613,2]
[393609233,1762851048032,-300.0,0.00038621,2]
[393609234,1762851048041,-1792.0,0.0003866,7]
[393609235,1762851048050,-300.0,0.00038669,2]
[393609236,1762851048060,-1442.82979256,0.00038676,2]
[393609237,1762851048069,-1000.0,0.00038677,7]
[393609238,1762851048078,-311.91611793,0.0003868,120]
[393609239,1762851048087,-300.0,0.00038685,2]
[393609240,1762851048097,-1250.53,0.0003869,2]
[393609241,1762851048107,-500.0,0.00038698,7]
[393609242,1762851048117,-500.0,0.00038698,7]
[393609243,1762851048126,-500.0,0.00038698,7]
[393609244,1762851048137,-500.0,0.00038698,7]
[393609245,1762851048147,-500.0,0.00038698,7]
[393609246,1762851048157,-500.0,0.00038698,7]
[393609247,1762851048166,-500.0,0.00038698,7]
[393609248,1762851048176,-500.0,0.00038698,7]
[393609249,1762851048186,-500.0,0.00038698,7]
[393609250,1762851048195,-500.0,0.00038698,7]
[393609251,1762851048205,-512.69,0.00038698,7]
[393609252,1762851048214,-219.57,0.00038698,7]
[393609253,1762851048223,-1000.0,0.000387,7]
[393609254,1762851048232,-300.0,0.0003871,2]
[393609255,1762851048242,-500.0,0.00038722,41]
[393609256,1762851048251,-500.0,0.00038722,41]
[393609257,1762851048263,-300.0,0.00038725,2]
[393609258,1762851048272,-150.0,0.00038735,7]
[393609259,1762851048281,-200.0,0.0003874,2]
[393609260,1762851048290,-1539.0,0.00038747,2]
[393609261,1762851048300,-217.96580628,0.00038761,2]
[393609262,1762851048311,-300.0,0.000388,2]
[393609263,1762851048321,-1000.0,0.000388,7]
[393609264,1762851048330,-168.54112068,0.000388,120]
[393609265,1762851048342,-1632.0,0.00038804,7]
[393609266,1762851048351,-300.0,0.00038804,2]
[393609267,1762851048359,-300.0,0.00038807,2]
[393609268,1762851048369,-300.0,0.00038819,2]
[393609269,1762851048379,-1539.0,0.00038843,7]
[393609270,1762851048389,-151.0,0.00038846,2]
[393609271,1762851048398,-373.07297731,0.00038846,2]
[393609272,1762851048407,-825.65138266,0.0003885,2]
[393609273,1762851048417,-300.0,0.00038855,2]
[393609274,1762851048426,-150.0,0.00038855,7]
[393609275,1762851048435,-1000.0,0.00038858,120]
[393609276,1762851048444,-500.0,0.00038859,41]
[393609277,1762851048454,-500.0,0.00038859,41]
[393609278,1762851048463,-500.0,0.00038859,41]
[393609279,1762851048472,-300.0,0.00038872,2]
[393609280,1762851048481,-168.14369062,0.00038877,30]
[393609281,1762851048490,-157.37982075,0.00038877,30]
[393609282,1762851048499,-300.0,0.00038877,2]
[393609283,1762851048508,-1206.87,0.00038877,2]
[393609284,1762851048517,-169.21,0.00038877,2]
[393609285,1762851048527,-181.57,0.00038877,2]
[393609286,1762851048536,-169.21,0.00038877,2]
[393609287,1762851048545,-1206.87,0.00038877,2]
[393609288,1762851048555,-177.09,0.00038877,2]
[393609289,1762851048564,-177.09,0.00038877,2]
[393609290,1762851048574,-581.83,0.00038877,2]
[393609291,1762851048583,-169.21,0.00038877,2]
[393609292,1762851048592,-169.21,0.00038877,2]
[393609293,1762851048601,-177.09,0.00038877,2]
[393609294,1762851048611,-300.0,0.00038877,2]
[393609295,1762851048620,-416.14,0.00038877,2]
[393609296,1762851048629,-549.32,0.00038877,2]
[393609297,1762851048638,-416.14,0.00038877,2]
[393609298,1762851048648,-549.62,0.00038877,2]
[393609299,1762851048658,-300.0,0.00038877,2]
[393609300,1762851048667,-415.08,0.00038877,2]
[393609301,1762851048677,-549.62,0.00038877,2]
[393609302,1762851048686,-300.0,0.00038882,2]
[393609303,1762851048695,-300.0,0.00038886,2]
[393609304,1762851048705,-1430.49365947,0.000389,120]
[393609305,1762851048715,-300.0,0.00038902,2]
[393609306,1762851048724,-204.43952516,0.00038904,5]
[393609307,1762851048734,-1539.0,0.00038908,2]
[393609308,1762851048743,-505.87243499,0.00038909,120]
[393609309,1762851048753,-300.0,0.00038913,2]
[393609310,1762851048762,-300.0,0.00038914,2]
[393609311,1762851048772,-300.0,0.00038939,2]
[393609312,1762851048781,-300.0,0.00038942,2]
[393609313,1762851048790,-1539.0,0.00038953,7]
[393609314,1762851048800,-150.0,0.00038956,7]
[393609315,1762851048809,-1539.0,0.00038969,2]
[393609316,1762851048818,-1000.0,0.00038969,7]
[393609317,1762851048827,-150.0,0.0003898,7]
[393609318,1762851048836,-300.0,0.00038981,2]
[393609319,1762851048846,-1442.82979256,0.00038981,2]
[393609320,1762851048855,-150.0,0.00038989,7]
[393609321,1762851048865,-150.0,0.00038996,41]
[393609322,1762851048874,-500.0,0.00038996,41]
[393609323,1762851048883,-2149.45206844,0.00038999,2]
[393609324,1762851048893,-163.0,0.00039,90]
[393609325,1762851048902,-933.6952,0.00039,7]
[393609326,1762851048911,-172.09582685,0.00039,2]
[393609327,1762851048920,-2527.71,0.00039,30]
[393609328,1762851048929,-239.17,0.00039,14]
[393609329,1762851048938,-2500.0,0.00039004,14]
[393609330,1762851048948,-150.0,0.00039006,7]
[393609331,1762851048957,-1000.0,0.00039008,7]
[393609332,1762851048966,-1000.0,0.00039013,7]
[393609333,1762851048975,-2500.0,0.00039013,14]
[393609334,1762851048985,-2500.0,0.00039022,14]
[393609335,1762851048994,-2500.0,0.00039031,14]
[393609336,1762851049003,-2500.0,0.0003904,14]
[393609337,1762851049012,-1000.0,0.00039044,7]
[393609338,1762851049021,-2500.0,0.00039048,14]
[393609339,1762851049030,-2500.0,0.00039057,14]
[393609340,1762851049040,-1000.0,0.00039058,7]
[393609341,1762851049049,-1000.0,0.00039062,7]
[393609342,1762851049058,-2500.0,0.00039066,14]
[393609343,1762851049067,-2500.0,0.00039075,14]
[393609344,1762851049076,-300.0,0.00039075,2]
[393609345,1762851049085,-300.0,0.00039076,2]
[393609346,1762851049094,-300.0,0.00039077,2]
[393609347,1762851049103,-2500.0,0.00039084,14]
[393609348,1762851049112,-150.0,0.00039085,7]
[393609349,1762851049121,-300.0,0.00039087,2]
[393609350,1762851049130,-150.0,0.00039092,7]
[393609351,1762851049140,-2500.0,0.00039092,14]
[393609352,1762851049150,-1000.0,0.000391,7]
[393609353,1762851049159,-927.51,0.000391,30]
[393609354,1762851049168,-2500.0,0.00039101,14]
[393609355,1762851049177,-300.0,0.00039104,2]
[393609356,1762851049186,-300.0,0.00039106,2]
[393609357,1762851049194,-300.0,0.00039107,2]
[393609358,1762851049203,-2500.0,0.0003911,14]
[393609359,1762851049212,-300.0,0.00039117,2]
[393609360,1762851049221,-300.0,0.00039118,2]
[393609361,1762851049231,-2500.0,0.00039119,14]
[393609362,1762851049239,-1000.0,0.00039123,7]
[393609363,1762851049249,-200.0,0.00039127,2]
[393609364,1762851049259,-2500.0,0.00039128,14]
[393609365,1762851049271,-1000.0,0.00039129,7]